fUST/lending_fUST_20260101
["ID","MTS","AMOUNT","RATE_DAILY","PERIOD"]
[400283204,1767262242168,-724.46984263,0.000215,2]
[400283205,1767262242226,-8284.0118899,0.000215,2]
[400283206,1767262242235,-151.0,0.000215,2]
[400283207,1767262242244,-379.20855419,0.00021695,2]
[400283208,1767262242254,-201.56718446,0.00021836,5]
[400283209,1767262242263,-150.0,0.00022059,30]
[400283210,1767262242273,-173.6,0.00022131,2]
[400283211,1767262242282,-309.38,0.000222,7]
[400283212,1767262242291,-1542.6168907,0.00022223,2]
[400283213,1767262242301,-1031.90217382,0.000225,2]
[400283214,1767262242311,-380.32,0.000226,2]
[400283215,1767262242321,-150.0,0.00022978,30]
[400283216,1767262242330,-3000.0,0.00023,2]
[400283217,1767262242339,-307.47159937,0.00023002,2]
[400283218,1767262242349,-3000.0,0.0002301,2]
[400283219,1767262242358,-3000.0,0.0002302,2]
[400283220,1767262242368,-344.2043538,0.00023029,2]
[400283221,1767262242377,-3000.0,0.0002303,2]
[400283222,1767262242387,-3000.0,0.0002304,2]
[400283223,1767262242396,-3000.0,0.0002305,2]
[400283224,1767262242405,-3000.0,0.0002306,2]
[400283225,1767262242414,-3000.0,0.0002307,2]
[400283226,1767262242423,-3000.0,0.0002308,2]
[400283227,1767262242433,-3000.0,0.0002309,2]
[400283228,1767262242442,-3000.0,0.000231,2]
[400283229,1767262242452,-3000.0,0.0002311,2]
[400283230,1767262242462,-3000.0,0.0002312,2]
[400283231,1767262242471,-3000.0,0.0002313,2]
[400283232,1767262242481,-401.18167064,0.00023139,2]
[400283233,1767262242490,-3000.0,0.0002314,2]
[400283234,1767262242499,-307.47159937,0.00023141,4]
[400283235,1767262242509,-151.0,0.00023141,2]
[400283236,1767262242518,-3000.0,0.0002315,2]
[400283237,1767262242527,-151.0,0.0002315,2]
[400283238,1767262242537,-151.0,0.0002315,2]
[400283239,1767262242546,-2266.78810309,0.0002316,2]
[400283240,1767262242559,-733.21189691,0.0002316,2]
[400283241,1767262242568,-5121.726876,0.0002317,2]
[400283242,1767262242577,-420.866477,0.00023244,2]
[400283243,1767262242591,-307.47159937,0.00023279,6]
[400283244,1767262242601,-307.47159937,0.00023417,8]
[400283245,1767262242610,-307.47159937,0.00023556,10]
[400283246,1767262242619,-307.47159937,0.00023694,12]
[400283247,1767262242629,-307.47159937,0.00023833,14]
[400283248,1767262242639,-151.0,0.00023842,2]
[400283249,1767262242648,-150.0,0.00023897,30]
[400283250,1767262242657,-10489.01100002,0.000239,3]
[400283251,1767262242669,-1000.0,0.000239,3]
[400283255,1767262243105,-873.75855216,0.000239,3]
[400283259,1767262245440,-543.13181386,0.000239,3]
[400283260,1767262245490,-911.75,0.000239,3]
[400283266,1767262246776,-5947.27843202,0.000239,3]
[400283267,1767262246789,-1654.29364488,0.000239,3]
[400283268,1767262319040,150.0,0.0001229,2]
[400283269,1767262319435,150.0,0.00012875,2]
[400283270,1767262449340,150.0,0.00011891,2]
[400283271,1767262449731,150.0,0.00012458,2]
[400283272,1767262523902,150.0,0.00011688,2]
[400283273,1767262524312,150.0,0.00012245,2]
[400283274,1767262524806,150.0,0.00012801,2]
[400283275,1767262588986,298.2,0.00012329,2]
[400283276,1767262596609,150.0,0.0001192,2]
[400283277,1767262597010,150.0,0.00012488,2]
[400283278,1767262599381,248.5,0.00012329,2]
[400283279,1767262609773,207.09,0.00012329,2]
[400283280,1767262620282,172.57,0.00012329,2]
[400283281,1767262631081,862.89,0.00012329,2]
[400283282,1767262669625,150.0,0.00011386,2]
[400283283,1767262670163,150.0,0.00011929,2]
[400283284,1767262670546,150.0,0.00012471,2]
[400283285,1767262740206,150.0,0.00011386,2]
[400283286,1767262740619,150.0,0.00011928,2]
[400283287,1767262741023,150.0,0.0001247,2]
[400283288,1767262811691,150.0,0.00011176,2]
[400283289,1767262812117,150.0,0.00011708,2]
[400283290,1767262812551,150.0,0.0001224,2]
[400283291,1767262812936,150.0,0.00012772,2]
[400283292,1767262880568,150.0,0.00011204,2]
[400283293,1767262880951,150.0,0.00011738,2]
[400283294,1767262881346,150.0,0.00012271,2]
[400283295,1767262903332,208.694,0.00012809,2]
[400283296,1767263067725,150.0,0.00012795,2]
[400283297,1767263177502,500.0,0.00012795,2]
[400283298,1767263177656,501.0951248,0.00012932,2]
[400283299,1767263177947,500.0,0.00012795,2]
[400283300,1767263178003,150.0,0.00012795,2]
[400283301,1767263178027,150.0,0.00012795,2]
[400283302,1767263178130,524.93036213,0.00012932,2]
[400283303,1767263178333,150.39445871,0.00012932,2]
[400283304,1767263178517,150.0,0.00012932,2]
[400283306,1767263319894,311.47488195,0.0001,2]
[400283308,1767263391368,418.82956551,0.00012968,2]
[400283341,1767263431739,-300.0,0.00012967,2]
[400283343,1767263431748,-300.0,0.00012967,2]
[400283345,1767263431758,-12.65091569,0.00012967,2]
[400283392,1767263437727,-591.34908431,0.00012967,2]
[400283393,1767263437737,-500.0,0.00012967,2]
[400283394,1767263437747,-500.0,0.00012967,2]
[400283395,1767263437757,-500.0,0.00012967,2]
[400283396,1767263437766,-500.0,0.00012967,2]
[400283397,1767263437776,-324.05827068,0.00012967,2]
[400283398,1767263437786,-500.0,0.00012967,2]
[400283399,1767263437795,-500.0,0.00012967,2]
[400283400,1767263437805,-500.0,0.00012967,2]
[400283401,1767263437815,-192.71557618,0.00012967,2]
[400283402,1767263437825,-500.0,0.00012967,2]
[400283403,1767263437835,-499.77858461,0.00012967,2]
[400283404,1767263437847,-0.22141539,0.00012967,2]
[400283405,1767263437857,-500.0,0.00012967,2]
[400283406,1767263437867,-500.0,0.00012967,2]
[400283407,1767263437877,-500.0,0.00012967,2]
[400283408,1767263437887,-419.92744145,0.00012967,2]
[400283409,1767263437896,-500.0,0.00012967,2]
[400283410,1767263437906,-500.0,0.00012967,2]
[400283411,1767263437916,-500.0,0.00012967,2]
[400283412,1767263437926,-561.63247749,0.00012967,2]
[400283413,1767263437935,-500.0,0.00012967,2]
[400283414,1767263437945,-500.0,0.00012967,2]
[400283415,1767263437955,-500.0,0.00012967,2]
[400283416,1767263437964,-500.0,0.00012967,2]
[400283417,1767263437973,-500.0,0.00012967,2]
[400283418,1767263437982,-207.55073606,0.00012967,2]
[400283419,1767263437992,-500.0,0.00012967,2]
[400283420,1767263438002,-500.0,0.00012967,2]
[400283421,1767263438011,-500.0,0.00012967,2]
[400283422,1767263438020,-472.63754669,0.00012967,2]
[400283423,1767263438030,-500.0,0.00012967,2]
[400283424,1767263438040,-500.0,0.00012967,2]
[400283425,1767263438050,-500.0,0.00012967,2]
[400283426,1767263438059,-500.0,0.00012967,2]
[400283427,1767263438069,-500.0,0.00012967,2]
[400283428,1767263438079,-500.0,0.00012967,2]
[400283429,1767263438088,-500.0,0.00012967,2]
[400283430,1767263438098,-500.0,0.00012967,2]
[400283431,1767263438107,-165.33152348,0.00012967,2]
[400283432,1767263438118,-500.0,0.00012967,2]
[400283433,1767263438127,-257.6744705,0.00012967,2]
[400283434,1767263438137,-500.0,0.00012967,2]
[400283435,1767263438146,-500.0,0.00012967,2]
[400283436,1767263438155,-500.0,0.00012967,2]
[400283437,1767263438165,-500.0,0.00012967,2]
[400283438,1767263438175,-500.0,0.00012967,2]
[400283439,1767263438185,-500.0,0.00012967,2]
[400283440,1767263438195,-500.0,0.00012967,2]
[400283441,1767263438205,-868096.50869107,0.00012968,2]
[400283442,1767263438217,-34544.77170516,0.00012968,2]
[400283443,1767263438227,-925.41947073,0.00012968,2]
[400283476,1767263440002,-4958.17270198,0.00012968,2]
[400283531,1767263563284,-198.8,0.00012329,2]
[400283532,1767263563312,-165.67,0.00012329,2]
[400283533,1767263563338,-828.37,0.00012329,2]
[400283534,1767263563364,-300.0,0.00012966,2]
[400283535,1767263563391,-501.34621606,0.00012967,2]
[400283536,1767263563418,-500.0,0.00012967,2]
[400283537,1767263563444,-500.0,0.00012967,2]
[400283538,1767263563471,-386.56607062,0.00012967,2]
[400283539,1767263563498,-500.0,0.00012967,2]
[400283540,1767263563526,-500.0,0.00012967,2]
[400283541,1767263563554,-320.42893239,0.00012967,2]
[400283542,1767263563582,-375.97012699,0.00012967,2]
[400283543,1767263563611,-500.0,0.00012967,2]
[400283544,1767263563638,-500.0,0.00012967,2]
[400283545,1767263563667,-500.0,0.00012967,2]
[400283546,1767263563694,-597.90946356,0.00012967,2]
[400283547,1767263563721,-327.29368314,0.00012967,2]
[400283548,1767263563749,-500.0,0.00012967,2]
[400283549,1767263563777,-500.0,0.00012967,2]
[400283550,1767263563804,-500.0,0.00012967,2]
[400283551,1767263563832,-500.0,0.00012967,2]
[400283552,1767263563860,-495.29101448,0.00012967,2]
[400283553,1767263780843,1567.8,0.00028767,120]
[400283554,1767263880279,155.61,7.992e-05,2]
[400283555,1767263880545,155.61,7.992e-05,2]
[400283556,1767263880852,155.59,7.992e-05,2]
[400283557,1767264160699,504.769,0.00028767,120]
[400283558,1767264403573,51458.30821996,0.00028767,120]
[400283590,1767264631858,-150.0,0.00011101,2]
[400283592,1767264631868,-576.0,0.00011101,2]
[400283594,1767264631877,-244.09478147,0.00011626,2]
[400283596,1767264631886,-84.33107572,0.0001163,2]
[400283598,1767264631899,-65.66892428,0.0001163,2]
[400283599,1767264631907,-201.4992094,0.00012063,2]
[400283600,1767264631917,-150.0,0.00012158,2]
[400283601,1767264631929,-31.81474827,0.00012328,2]
[400283602,1767264631939,-268.18525173,0.00012328,2]
[400283603,1767264631949,-300.0,0.00012328,2]
[400283604,1767264631958,-297.0,0.00012328,2]
[400283605,1767264631967,-434.6,0.00012329,2]
[400283606,1767264631976,-849.41,0.00012329,2]
[400283607,1767264631985,-341.36,0.00012329,2]
[400283608,1767264631994,-203.85,0.00012329,2]
[400283609,1767264632003,-620.21,0.00012329,2]
[400283610,1767264632013,-1046.03,0.00012329,2]
[400283611,1767264632022,-871.69,0.00012329,2]
[400283612,1767264632031,-896.29,0.00012329,2]
[400283613,1767264632040,-884.1,0.00012329,2]
[400283614,1767264632049,-736.75,0.00012329,2]
[400283615,1767264632058,-613.95,0.00012329,2]
[400283617,1767264632068,-600.52475583,0.00012436,2]
[400283619,1767264632077,-500.0,0.00012436,2]
[400283621,1767264632086,-500.0,0.00012436,2]
[400283622,1767264632096,-500.0,0.00012436,2]
[400283623,1767264632105,-500.0,0.00012436,2]
[400283624,1767264632114,-500.0,0.00012436,2]
[400283625,1767264632123,-207.55073606,0.00012436,2]
[400283626,1767264632133,-500.0,0.00012436,2]
[400283627,1767264632143,-500.0,0.00012436,2]
[400283628,1767264632152,-500.0,0.00012436,2]
[400283629,1767264632162,-500.0,0.00012436,2]
[400283630,1767264632172,-500.0,0.00012436,2]
[400283631,1767264632181,-1734.54079336,0.00012437,2]
[400283633,1767264637981,-511.63,0.00012329,2]
[400283634,1767264637991,-337.15,0.00012436,2]
[400283635,1767264638003,-162.85,0.00012436,2]
[400283636,1767264638013,-500.0,0.00012436,2]
[400283638,1767264638022,-218.93640298,0.00012436,2]
[400283640,1767264638031,-500.0,0.00012436,2]
[400283641,1767264638041,-500.0,0.00012436,2]
[400283642,1767264638050,-500.0,0.00012436,2]
[400283643,1767264638059,-500.0,0.00012436,2]
[400283644,1767264638069,-500.0,0.00012436,2]
[400283645,1767264638078,-500.0,0.00012436,2]
[400283646,1767264638088,-500.0,0.00012436,2]
[400283647,1767264638097,-231.66072867,0.00012436,2]
[400283648,1767264638107,-500.0,0.00012436,2]
[400283649,1767264638117,-500.0,0.00012436,2]
[400283650,1767264638126,-500.0,0.00012436,2]
[400283651,1767264638136,-500.0,0.00012436,2]
[400283652,1767264638146,-500.0,0.00012436,2]
[400283653,1767264638156,-500.0,0.00012436,2]
[400283654,1767264638165,-500.0,0.00012436,2]
[400283655,1767264638175,-500.0,0.00012436,2]
[400283656,1767264638184,-522.15045991,0.00012436,2]
[400283657,1767264638193,-500.0,0.00012436,2]
[400283658,1767264638203,-500.0,0.00012436,2]
[400283659,1767264638212,-500.0,0.00012436,2]
[400283660,1767264638222,-500.0,0.00012436,2]
[400283661,1767264638232,-500.0,0.00012436,2]
[400283662,1767264638242,-500.0,0.00012436,2]
[400283663,1767264638251,-500.0,0.00012436,2]
[400283664,1767264638261,-500.0,0.00012436,2]
[400283665,1767264638270,-500.0,0.00012436,2]
[400283666,1767264638279,-500.0,0.00012436,2]
[400283667,1767264638288,-500.0,0.00012436,2]
[400283668,1767264638298,-191.03369085,0.00012436,2]
[400283669,1767264638307,-500.0,0.00012436,2]
[400283670,1767264638317,-500.0,0.00012436,2]
[400283671,1767264638327,-500.0,0.00012436,2]
[400283672,1767264638337,-48265.45920664,0.00012437,2]
[400283673,1767264638346,-150.0,0.00012687,2]
[400283674,1767264638356,-1200.0,0.00012864,2]
[400283675,1767264638365,-205.4,0.00012864,2]
[400283676,1767264638375,-500.0,0.00012864,2]
[400283677,1767264638384,-500.0,0.00012864,2]
[400283678,1767264638394,-309.7740523,0.00012864,2]
[400283679,1767264638403,-500.0,0.00012864,2]
[400283680,1767264638414,-321.24715877,0.00012864,2]
[400283681,1767264638423,-500.0,0.00012864,2]
[400283682,1767264638433,-264.00648152,0.00012864,2]
[400283683,1767264638443,-500.0,0.00012864,2]
[400283684,1767264638452,-500.0,0.00012864,2]
[400283685,1767264638461,-500.0,0.00012864,2]
[400283686,1767264638471,-500.0,0.00012864,2]
[400283687,1767264638480,-500.0,0.00012864,2]
[400283688,1767264638490,-500.0,0.00012864,2]
[400283689,1767264638500,-500.0,0.00012864,2]
[400283690,1767264638509,-137122.66496781,0.00012865,2]
[400283691,1767264638522,-862877.33503219,0.00012865,2]
[400283692,1767264638531,-1855.75349672,0.00012871,2]
[400283693,1767264638540,-151.0,0.000129,2]
[400283694,1767264638550,-5431.2480844,0.00012967,2]
[400283695,1767264638559,-210.4332385,0.00012967,2]
[400283696,1767264638568,-210.4332386,0.00012967,2]
[400283697,1767264638578,-150.0,0.00012999,2]
[400283698,1767264638587,-215.28294886,0.00012999,2]
[400283699,1767264638597,-150.0,0.00012999,2]
[400283700,1767264638606,-500.0,0.00012999,2]
[400283701,1767264638616,-500.0,0.00012999,2]
[400283702,1767264638626,-160.94726979,0.00012999,2]
[400283703,1767264638635,-150.0,0.00012999,2]
[400283704,1767264638644,-150.0,0.00013136,2]
[400283705,1767264638655,-299.999999,0.00013136,2]
[400283706,1767264638664,-501.75567666,0.00013136,2]
[400283707,1767264638674,-500.0,0.00013136,2]
[400283708,1767264638683,-150.0,0.00013136,2]
[400283709,1767264638692,-205.41447394,0.00013138,2]
[400283710,1767264638702,-500.0,0.00013138,2]
[400283711,1767264638711,-150.0,0.00013216,2]
[400283712,1767264638721,-500.0,0.00013273,2]
[400283713,1767264638731,-500.0,0.00013273,2]
[400283714,1767264638740,-500.0,0.00013273,2]
[400283715,1767264638750,-150.19564112,0.00013273,2]
[400283716,1767264638759,-500.0,0.00013273,2]
[400283717,1767264638768,-500.0,0.00013273,2]
[400283718,1767264638777,-500.0,0.00013273,2]
[400283719,1767264638787,-500.0,0.00013273,2]
[400283720,1767264638797,-500.41387344,0.00013273,2]
[400283721,1767264638806,-500.0,0.00013273,2]
[400283722,1767264638815,-500.0,0.00013273,2]
[400283723,1767264638825,-264.0580248,0.00013273,2]
[400283724,1767264638834,-500.0,0.00013273,2]
[400283725,1767264638843,-500.0,0.00013273,2]
[400283726,1767264638853,-500.0,0.00013273,2]
[400283727,1767264638864,-500.0,0.00013273,2]
[400283728,1767264638875,-500.0,0.00013273,2]
[400283729,1767264638885,-500.0,0.00013273,2]
[400283730,1767264638894,-500.0,0.00013273,2]
[400283731,1767264638904,-500.0,0.00013273,2]
[400283732,1767264638915,-500.0,0.00013273,2]
[400283733,1767264638924,-437.05933227,0.00013273,2]
[400283734,1767264638933,-500.0,0.00013273,2]
[400283735,1767264638943,-500.0,0.00013273,2]
[400283736,1767264638953,-501.43262759,0.00013273,2]
[400283737,1767264638962,-313.69859985,0.00013273,2]
[400283738,1767264638971,-500.0,0.00013273,2]
[400283739,1767264638981,-500.0,0.00013273,2]
[400283740,1767264638991,-500.0,0.00013273,2]
[400283741,1767264639000,-216.93872881,0.00013273,2]
[400283742,1767264639010,-500.0,0.00013273,2]
[400283743,1767264639020,-500.0,0.00013273,2]
[400283744,1767264639031,-500.0,0.00013273,2]
[400283745,1767264639041,-500.0,0.00013273,2]
[400283746,1767264639051,-500.0,0.00013273,2]
[400283747,1767264639061,-500.0,0.00013273,2]
[400283748,1767264639070,-500.29119455,0.00013273,2]
[400283749,1767264639080,-500.0,0.00013273,2]
[400283750,1767264639089,-500.0,0.00013273,2]
[400283751,1767264639099,-581.36035181,0.00013273,2]
[400283752,1767264639109,-501.50808211,0.00013273,2]
[400283753,1767264639119,-500.0,0.00013273,2]
[400283754,1767264639128,-236.76731322,0.00013273,2]
[400283755,1767264639138,-500.0,0.00013273,2]
[400283756,1767264639147,-500.18467104,0.00013273,2]
[400283757,1767264639156,-235.36404067,0.00013273,2]
[400283758,1767264639165,-638.64633295,0.00013273,2]
[400283759,1767264639175,-500.0,0.00013273,2]
[400283760,1767264639185,-386.16342293,0.00013273,2]
[400283761,1767264639194,-500.0,0.00013273,2]
[400283762,1767264639203,-519.78745911,0.00013273,2]
[400283763,1767264639213,-500.0,0.00013273,2]
[400283764,1767264639222,-500.0,0.00013273,2]
[400283765,1767264639231,-500.0,0.00013273,2]
[400283766,1767264639240,-500.0,0.00013273,2]
[400283767,1767264639249,-161.75544269,0.00013273,2]
[400283768,1767264639258,-139.35004186,0.00013273,2]
[400283778,1767264640513,-1855.75349672,0.00012875,2]
[400283779,1767264640523,-360.64995814,0.00013273,2]
[400283780,1767264640532,-500.0,0.00013273,2]
[400283781,1767264640541,-500.0,0.00013273,2]
[400283782,1767264640551,-261.20334769,0.00013273,2]
[400283783,1767264640559,-500.0,0.00013273,2]
[400283784,1767264640570,-540.69279956,0.00013273,2]
[400283785,1767264640579,-418.41125218,0.00013273,2]
[400283786,1767264640588,-500.0,0.00013273,2]
[400283787,1767264640598,-500.0,0.00013273,2]
[400283788,1767264640608,-500.36376986,0.00013273,2]
[400283789,1767264640617,-200.0,0.00013273,2]
[400283790,1767264640626,-500.0,0.00013273,2]
[400283791,1767264640635,-150.0,0.00013273,2]
[400283792,1767264640645,-209.69632263,0.00013374,2]
[400283793,1767264640654,-500.0,0.0001341,2]
[400283794,1767264640663,-150.0,0.0001341,2]
[400283795,1767264640673,-500.0,0.00013412,2]
[400283796,1767264640683,-420.0,0.00013529,2]
[400283797,1767264640691,-2819.05627549,0.0001354,2]
[400283822,1767265500256,156.159,0.00028767,120]
[400283824,1767265683285,163.39,7.992e-05,2]
[400283825,1767265683560,163.37,7.992e-05,2]
[400283939,1767266484326,2045.70777045,8.394e-05,2]
[400283940,1767266484639,2045.70777045,8.734e-05,2]
[400283941,1767266484957,2045.70777046,9.025e-05,2]
[400283942,1767266590277,224.55081306,0.00023638,120]
[400283943,1767266610634,2140.68490732,9.298e-05,2]
[400283944,1767266625294,-1000.0,0.00010307,2]
[400283945,1767266656825,-250.0,0.00010411,2]
[400283946,1767266656846,-256.61288584,0.00010411,2]
[400283947,1767266656866,-566.0,0.00010411,2]
[400283948,1767266829730,171.11765917,0.00023947,120]
[400283950,1767266839176,-500.0,0.00011201,2]
[400283951,1767266839197,-74.97021888,0.00011201,2]
[400284024,1767267038244,-150.0,0.00010981,2]
[400284025,1767267038254,-574.0,0.00010981,2]
[400284026,1767267038264,-425.02978112,0.00011201,2]
[400284027,1767267038273,-251.48062812,0.0001122,2]
[400284028,1767267038283,-300.0,0.00011399,2]
[400284029,1767267038294,-300.0,0.00011399,2]
[400284030,1767267038303,-274.43783279,0.00011399,2]
[400284031,1767267038315,-25.56216721,0.00011399,2]
[400284032,1767267038325,-300.0,0.00011399,2]
[400284033,1767267038335,-500.0,0.000114,2]
[400284034,1767267038345,-500.0,0.000114,2]
[400284035,1767267038354,-422.73270842,0.000114,2]
[400284036,1767267038366,-77.26729158,0.000114,2]
[400284037,1767267038375,-259.60931661,0.000114,2]
[400284038,1767267038385,-500.0,0.000114,2]
[400284039,1767267038395,-500.0,0.000114,2]
[400284040,1767267038405,-361.67406175,0.000114,2]
[400284041,1767267038416,-583.72718767,0.000114,2]
[400284042,1767267038425,-500.0,0.000114,2]
[400284043,1767267038435,-7.97380769,0.000114,2]
[400284044,1767267038447,-492.02619231,0.000114,2]
[400284045,1767267038457,-500.0,0.000114,2]
[400284046,1767267038466,-500.0,0.000114,2]
[400284047,1767267038475,-500.0,0.000114,2]
[400284048,1767267038484,-500.0,0.000114,2]
[400284049,1767267038494,-63.70147639,0.000114,2]
[400284050,1767267038504,-436.29852361,0.000114,2]
[400284051,1767267038514,-499.30085146,0.000114,2]
[400284052,1767267038523,-500.0,0.000114,2]
[400284053,1767267038533,-500.0,0.000114,2]
[400284054,1767267038543,-500.0,0.000114,2]
[400284055,1767267038552,-500.0,0.000114,2]
[400284056,1767267038562,-500.0,0.000114,2]
[400284057,1767267038571,-500.0,0.000114,2]
[400284058,1767267038581,-478.20447999,0.000114,2]
[400284059,1767267038591,-500.0,0.000114,2]
[400284060,1767267038601,-500.0,0.000114,2]
[400284061,1767267038611,-331.93693688,0.000114,2]
[400284062,1767267038622,-482.24165179,0.000114,2]
[400284063,1767267038635,-385.82141133,0.000114,2]
[400284064,1767267038644,-32953.1390394,0.00011401,2]
[400284065,1767267038653,-26691.39965964,0.00011403,2]
[400284066,1767267038665,-2289.74309216,0.00011403,2]
[400284067,1767267038679,-150.0,0.00011504,2]
[400284068,1767267038689,-302.0495601,0.0001152,2]
[400284084,1767267040489,-696.9504399,0.0001152,2]
[400284085,1767267040499,-20.8775601,0.00012027,2]
[400284086,1767267040511,-129.1224399,0.00012027,2]
[400284087,1767267040521,-598.59232668,0.00012173,2]
[400284088,1767267040543,-500.0,0.00012173,2]
[400284232,1767267046219,-56.98770971,0.00012173,2]
[400284234,1767267046228,-485.42229029,0.00012173,2]
[400284235,1767267046240,-1568.94221884,0.00012173,2]
[400284236,1767267046250,-286.46300085,0.00012173,2]
[400284237,1767267046259,-515.63340152,0.00012173,2]
[400284238,1767267046270,-377.0796734,0.00012227,2]
[400284240,1767267046279,-641.9889091,0.00012227,2]
[400284241,1767267046289,-500.0,0.0001224,2]
[400284242,1767267046298,-303.46838597,0.0001224,2]
[400284243,1767267046308,-500.0,0.0001224,2]
[400284244,1767267046317,-500.0,0.0001224,2]
[400284245,1767267046326,-500.0,0.0001224,2]
[400284246,1767267046336,-500.0,0.0001224,2]
[400284247,1767267046345,-500.0,0.0001224,2]
[400284248,1767267046354,-517.2773998,0.0001224,2]
[400284249,1767267046363,-500.0,0.0001224,2]
[400284250,1767267046373,-500.0,0.0001224,2]
[400284251,1767267046383,-335.35281775,0.0001224,2]
[400284252,1767267046392,-500.0,0.0001224,2]
[400284253,1767267046402,-500.0,0.0001224,2]
[400284254,1767267046411,-500.0,0.0001224,2]
[400284255,1767267046421,-500.0,0.00012241,2]
[400284256,1767267046430,-4391.547013,0.00012242,2]
[400284257,1767267046440,-426.36,0.00012329,2]
[400284258,1767267046450,-355.3,0.00012329,2]
[400284259,1767267046460,-296.08,0.00012329,2]
[400284260,1767267046471,-246.73,0.00012329,2]
[400284261,1767267046480,-205.61,0.00012329,2]
[400284262,1767267046489,-171.34,0.00012329,2]
[400284263,1767267046499,-856.75,0.00012329,2]
[400284264,1767267046508,-271.7098429,0.00012443,2]
[400284265,1767267046517,-500.0,0.00012515,2]
[400284266,1767267046527,-420.0,0.00012521,2]
[400284267,1767267046536,-1680.0,0.00012522,2]
[400284268,1767267046546,-312.0,0.00012539,2]
[400284269,1767267046555,-150.0,0.0001255,2]
[400284270,1767267046565,-3541.97257103,0.00012665,2]
[400284271,1767267046574,-362.93930167,0.00012665,2]
[400284272,1767267046583,-151.0,0.000127,2]
[400284273,1767267046593,-151.0,0.000127,2]
[400284274,1767267046602,-24099.602135,0.00012713,2]
[400284275,1767267046611,-500.0,0.00012789,2]
[400284276,1767267046621,-151.0,0.000128,2]
[400284277,1767267046630,-151.0,0.000128,2]
[400284278,1767267046641,-392.55307103,0.00012814,2]
[400284279,1767267046651,-1448.68951385,0.00012871,2]
[400284280,1767267046660,-362.53491338,0.00012871,2]
[400284281,1767267046669,-184.5461261,0.00012871,2]
[400284282,1767267046678,-3541.97257103,0.00012882,2]
[400284283,1767267046688,-17962.62372817,0.000129,2]
[400284284,1767267046700,-4551.52241507,0.000129,2]
[400284285,1767267046709,-250.0,0.00013025,2]
[400284286,1767267046718,-250.0,0.00013025,2]
[400284287,1767267046727,-1000.0,0.00013025,2]
[400284288,1767267046736,-250.0,0.00013025,2]
[400284289,1767267046745,-1000.0,0.00013025,2]
[400284290,1767267046754,-206.5261667,0.00013025,2]
[400284291,1767267046791,-43.4738333,0.00013025,2]
[400284292,1767267046800,-250.0,0.00013025,2]
[400284293,1767267046809,-159.13098429,0.00013025,2]
[400284294,1767267046823,-840.86901571,0.00013025,2]
[400284295,1767267046832,-250.0,0.00013025,2]
[400284296,1767267046841,-250.0,0.00013025,2]
[400284297,1767267046850,-1000.0,0.00013025,2]
[400284298,1767267046860,-96.08046503,0.00013025,2]
[400284299,1767267046871,-153.91953497,0.00013025,2]
[400284300,1767267046880,-1000.0,0.00013025,2]
[400284301,1767267046889,-250.0,0.00013025,2]
[400284302,1767267046899,-34.80046503,0.00013025,2]
[400284303,1767267046914,-215.19953497,0.00013025,2]